Cogmind - Beta 12 X2 @@@ ROGUE MODE // 2022.09.06 @ 10:22:35 Player: btmk16 Result: Self-destructed Performance ------------- Evolutions (3) 1500 Regions Visited (5) 1000 Robots Destroyed (44) 220 Value Destroyed (1225) 1225 Prototype IDs (2) 40 Alien Tech Used (0) 0 Bonus (59) 59 TOTAL SCORE: 4044 Bonus ------- Follower Combat Kills 59 Cogmind --------- Core Integrity 685/700 Matter 300/300 Energy 250/250 System Corruption 0% Temperature Cool (0) Movement Rolling (110) Ox2 Location -7/Factory Parts ------- > --- POWER (1) -------- Ion Engine > --- PROPULSION (4) --- Light Treads Light Treads Wheel Wheel > --- UTILITY (6) ------ Scrap Engine Heat Sink Disposable Heat Sink High-capacity Storage Unit Light Armor Plating > --- WEAPON (2) ------- Kinetic Construct/C > --- INVENTORY (20) --- Deuterium Engine Light Treads Large Storage Unit Medium Reactive Plating Rocket Launcher Peak State ------------ > --- POWER ------------ Ion Engine > --- PROPULSION ------- Light Treads Light Treads Wheel Wheel > --- UTILITY ---------- Scrap Engine Heat Sink Disposable Heat Sink High-capacity Storage Unit Light Armor Plating > --- WEAPON ----------- Small Laser Autogun > --- INVENTORY -------- Deuterium Engine Light Treads Flight Unit Flight Unit Flight Unit Improved Flight Unit Improved Flight Unit Improved Flight Unit Improved Flight Unit Large Storage Unit Particle Gun Light Assault Rifle Light Assault Rifle Light Cannon Light Cannon Light Cannon Light Cannon Assault Cannon Rocket Launcher [Rating: 32] Favorites ----------- Power Ion Engine Engine Ion Engine Propulsion Light Treads Treads Light Treads Wheel Wheel Flight Unit Improved Flight Unit Utility Heat Sink Device Heat Sink Storage Large Storage Unit Protection Light Armor Plating Weapon Assault Rifle Energy Gun Small Laser Ballistic Gun Assault Rifle Ballistic Cannon Kinetic Construct/C Launcher Rocket Launcher Build | -11 -10 -9 -9 -8 -7 ------- Run | Scr Mat Mat Min Mat Fac Slots Evolved 6 | . . 2 . 2 2 Power . | . . . . . . Propulsion 2 | . . 1 . 1 . Utility 4 | . . 1 . 1 2 Weapon . | . . . . . . Parts Attached 35 | 6 2 8 7 11 1 Power 3 | 1 . . 1 1 . Engine 3 | 1 . . 1 1 . Core . | . . . . . . Reactor . | . . . . . . Propulsion 14 | 2 . 6 1 5 . Treads 11 | 2 . 5 1 3 . Leg . | . . . . . . Wheel 2 | . . . . 2 . Hover . | . . . . . . Flight 1 | . . 1 . . . Utility 9 | 1 2 1 1 3 1 Device 5 | . 1 1 1 1 1 Storage 3 | 1 1 . . 1 . Processor . | . . . . . . Hackware . | . . . . . . Protection 1 | . . . . 1 . Artifact . | . . . . . . Weapon 9 | 2 . 1 4 2 . Energy Gun 1 | . . 1 . . . Energy Cannon . | . . . . . . Ballistic Gun 6 | 2 . . 2 2 . Ballistic Cannon . | . . . . . . Launcher 2 | . . . 2 . . Special Weapon . | . . . . . . Impact Weapon . | . . . . . . Slashing Weapon . | . . . . . . Piercing Weapon . | . . . . . . Special Melee Weapon . | . . . . . . Unidentified Prototypes 1 | . . 1 . . . Parts Lost 8 | . . 1 2 5 . Power 2 | . . . 1 1 . Propulsion 3 | . . . . 3 . Utility 1 | . . . . 1 . Weapon 2 | . . 1 1 . . Highest Loss Streak 2 | . . 1 1 2 . To Critical Strikes . | . . . . . . Average Slot Usage (%) 94 | . 99 92 99 90 88 Engine 10 | . 14 11 10 8 7 Treads 28 | . 28 29 33 29 15 Wheel 2 | . . . . 2 15 Device 19 | . 13 18 22 20 23 Storage 10 | . 14 11 11 9 7 Protection 1 | . . . . 1 7 Energy Gun 6 | . . 3 11 9 3 Ballistic Gun 14 | . 28 18 10 9 3 Naked Turns . | . . . . . . Heaviest Build 55 | 13 29 30 37 55 55 Greatest Support 80 | 40 40 60 60 80 20 Greatest Overweight (x) 5 | . . . . 5 2 Average Overweight (x) . | . . . . 1 2 Largest Inventory Capacity 20 | 8 15 15 15 20 20 Average Capacity 16 | 7 13 15 15 19 20 Most Carried 19 | 6 8 15 15 19 19 Average Carried 12 | 3 7 12 14 15 8 Final Capacity 20 | 8 15 15 15 20 20 Final Carried 19 | 6 8 15 15 19 5 Class Distribution -------------------- 57% | Scavenger-Mutant 42% | Mutant Dominant Class ---------------- Mutant | -10/Materials Mutant | -9/Materials Scavenger-Mutant | -9/Mines Scavenger-Mutant | -8/Materials Scavenger-Mutant | -7/Factory Resources | -11 -10 -9 -9 -8 -7 ----------- Run | Scr Mat Mat Min Mat Fac Matter Collected 941 | 227 89 243 122 125 135 Remotely . | . . . . . . Salvage Created 1659 | . 164 572 327 469 127 Parts 92 | . 8 34 23 24 3 Haulers Intercepted 2 | . . 2 . . . Recyclers Shooed 1 | . . . . 1 . Parts Field Recycled . | . . . . . . Retrieved Matter . | . . . . . . Parts Self-Destructed . | . . . . . . Prevented . | . . . . . . Kills | -11 -10 -9 -9 -8 -7 ------- Run | Scr Mat Mat Min Mat Fac Combat Hostiles Destroyed 38 | . 4 10 12 9 3 Guns 31 | . 4 10 8 9 . Cannons 3 | . . . . . 3 AOE 4 | . . . 4 . . Classes Destroyed 7 | . 1 5 1 . . Worker 2 | . . 1 . 1 . Hauler 2 | . . 2 . . . Recycler 2 | . . . 1 1 . Swarmer 11 | . . 1 7 3 . Grunt 21 | . 4 6 4 4 3 Brawler 3 | . . 1 1 1 . Sentry 3 | . . 2 . 1 . Best Kill Streak 5 | . 2 5 3 4 3 Combat Bots Only 5 | . 2 5 3 3 3 Max Kills in Single Turn 2 | . 1 2 2 1 1 Gunslinging . | . . . . . . Exploded 2 | . . . 2 . . Melee . | . . . . . . Uniques/NPCs Destroyed . | . . . . . . Combat | -11 -10 -9 -9 -8 -7 -------- Run | Scr Mat Mat Min Mat Fac Damage Taken 1668 | . 105 437 446 588 92 Core 172 | . 10 55 52 40 15 Absorbed by Shields . | . . . . . . Core Remaining (%) 90 | 100 96 . 73 92 . Volleys Fired 139 | . 15 37 26 44 17 Largest 2 | . 2 2 2 2 1 Hottest 60 | . 40 60 60 60 39 Shots Fired 251 | . 30 73 50 81 17 Gun 232 | . 30 73 48 81 . Cannon 17 | . . . . . 17 Launcher 2 | . . . 2 . . Special . | . . . . . . Kinetic 184 | . 30 69 24 44 17 Thermal 65 | . . 4 24 37 . Explosive 2 | . . . 2 . . Electromagnetic . | . . . . . . Robot Hit Streak 15 | . 8 12 12 15 9 Robot Miss Streak 3 | . 2 3 2 2 1 Penetration Max 1 | . . . . . 1 Secondary Targets 7 | . . 4 1 2 . Max Gunslinging Chain 1 | . . 1 1 1 . Shots Hit Robots 175 | . 20 52 37 59 7 Core Hits 83 | . 11 23 19 24 6 Critical Kills . | . . . . . . Critical Parts Destroyed . | . . . . . . Critical Strikes . | . . . . . . Melee Attacks . | . . . . . . Impact . | . . . . . . Slashing . | . . . . . . Piercing . | . . . . . . Sneak Attacks . | . . . . . . Combat Hostiles . | . . . . . . Follow-up Attacks . | . . . . . . Damage Inflicted 2207 | . 200 566 713 570 158 Guns 1808 | . 200 553 485 570 . Cannons 158 | . . . . . 158 Explosions 228 | . . . 228 . . Melee . | . . . . . . Ramming 13 | . . 13 . . . Kinetic 1425 | . 200 518 274 275 158 Thermal 541 | . . 35 211 295 . Explosive 228 | . . . 228 . . Electromagnetic . | . . . . . . Impact . | . . . . . . Slashing . | . . . . . . Piercing . | . . . . . . Highest Corruption 5 | . 2 . . 5 . Average Corruption 3 | . 1 . . 5 . Corruption Purged . | . . . . . . Corruption Blocked . | . . . . . . Effects 10 | . 3 . . 7 . Message Errors 1 | . . . . 1 . Matter Fused 1 | . 1 . . . . Heat Flow Errors 3 | . 1 . . 2 . Energy Discharges 1 | . . . . 1 . Data Loss (minor) 2 | . . . . 2 . Misfires 1 | . . . . 1 . Alerts 1 | . 1 . . . . Overload Shots . | . . . . . . Overflow Damage 3 | . . . 3 . . Projectiles . | . . . . . . Explosions 3 | . . . 3 . . Melee . | . . . . . . Knockbacks 6 | . . . . . 6 Impact . | . . . . . . Kinetic 4 | . . . . . 4 Secondary 2 | . . . . . 2 Self-Inflicted Damage 31 | . . . 31 . . Shots 1 | . . . 1 . . Rammed 1 | . . 1 . . . Targets Rammed 1 | . . 1 . . . Kicked . | . . . . . . Crushed . | . . . . . . Highest Temperature 215 | . 215 . . 119 . Average Temperature 70 | . 111 . . 42 . Received Heat Transfer 711 | . 57 150 171 279 54 Siege Activations . | . . . . . . Robots Corrupted . | . . . . . . Combat Hostiles . | . . . . . . Parts Fried . | . . . . . . Impact Corruptions . | . . . . . . Robots Melted . | . . . . . . Combat Hostiles . | . . . . . . Parts Melted . | . . . . . . Heat Transferred 1175 | . . 75 450 650 . Parts Sabotaged . | . . . . . . Parts Stolen . | . . . . . . Parts Stripped . | . . . . . . Power Chain Reactions . | . . . . . . Missiles Intercepted . | . . . . . . Alert | -11 -10 -9 -9 -8 -7 ------- Run | Scr Mat Mat Min Mat Fac Peak Influence 362 | . 112 313 362 342 141 Initial 127 | . . 46 55 127 71 Average 167 | . 61 187 253 201 82 Maximum Alert Level 1 | . . 1 1 1 . Low Security (%) 61 | 100 100 53 24 57 100 Level 1 38 | . . 46 75 42 . Level 2 . | . . . . . . Level 3 . | . . . . . . Level 4 . | . . . . . . Level 5 . | . . . . . . High Security . | . . . . . . Max Security . | . . . . . . Squads Dispatched 2 | . . 1 . . 1 Investigation . | . . . . . . Extermination . | . . . . . . Reinforcement 2 | . . 1 . . 1 Assault . | . . . . . . Garrison . | . . . . . . Intercept . | . . . . . . Searches Triggered . | . . . . . . Construction Impeded . | . . . . . . Haulers Reinforced . | . . . . . . Active Scanning Responses . | . . . . . . Cargo Convoy Interrupts . | . . . . . . Stealth | -11 -10 -9 -9 -8 -7 --------- Run | Scr Mat Mat Min Mat Fac Distress Signals 4 | . . 3 1 . . Communications Jammed . | . . . . . . Distress Signals . | . . . . . . Times Spotted 62 | . 4 16 17 20 5 Peak Tracking Total 8 | . 2 8 4 6 4 Tactical Retreats 1 | . . . 1 . . Traps | -11 -10 -9 -9 -8 -7 ------- Run | Scr Mat Mat Min Mat Fac Traps Triggered 2 | . 2 . . . . Indirectly . | . . . . . . Trap Hack Attempts . | . . . . . . Triggered . | . . . . . . Disarmed . | . . . . . . Reprogrammed . | . . . . . . Reused . | . . . . . . Traps Extracted . | . . . . . . Installed . | . . . . . . Triggered . | . . . . . . Machines | -11 -10 -9 -9 -8 -7 ---------- Run | Scr Mat Mat Min Mat Fac Machines Disabled 1 | . . . 1 . . Max in Single Turn 1 | . . . 1 . . Machines Sabotaged . | . . . . . . Overloaded Fab Kills . | . . . . . . Hacking | -11 -10 -9 -9 -8 -7 --------- Run | Scr Mat Mat Min Mat Fac Machines Accessed 5 | . 2 1 . 1 1 Terminals 5 | . 2 1 . 1 1 Fabricators . | . . . . . . Repair Stations . | . . . . . . Recycling Units . | . . . . . . Scanalyzers . | . . . . . . Garrison Access . | . . . . . . Total Hacks 10 | . 4 1 . 4 1 Successful 6 | . 2 1 . 2 1 Failed 4 | . 2 . . 2 . Catastrophic . | . . . . . . Database Lockouts . | . . . . . . Manual 4 | . 2 . . 2 . Terminals 10 | . 4 1 . 4 1 Fabricators . | . . . . . . Repair Stations . | . . . . . . Recycling Units . | . . . . . . Scanalyzers . | . . . . . . Garrison Access . | . . . . . . Terminal Hacks 6 | . 2 1 . 2 1 Robot Analysis 2 | . 2 . . . . Alert Level 1 | . . . . 1 . Hauler Manifests 1 | . . . . 1 . Registered Components 2 | . . 1 . . 1 Fabricator Hacks . | . . . . . . Repair Station Hacks . | . . . . . . Recycling Unit Hacks . | . . . . . . Scanalyzer . | . . . . . . Garrison Access Hacks . | . . . . . . Unauthorized Hacks . | . . . . . . Terminals . | . . . . . . Fabricators . | . . . . . . Repair Stations . | . . . . . . Recycling Units . | . . . . . . Scanalyzers . | . . . . . . Garrison Access . | . . . . . . Data Cores Recovered . | . . . . . . Used . | . . . . . . Hacking Detections 4 | . 2 1 . 1 . Full Trace Events . | . . . . . . Feedback Events . | . . . . . . Feedback Blocked . | . . . . . . Robot Schematics Acquired . | . . . . . . Robots Built . | . . . . . . Authchips . | . . . . . . Time . | . . . . . . Total Robot Build Rating . | . . . . . . Part Schematics Acquired . | . . . . . . Parts Built . | . . . . . . Authchips . | . . . . . . Time . | . . . . . . Total Part Build Rating . | . . . . . . Parts Repaired . | . . . . . . Time . | . . . . . . Parts Recycled . | . . . . . . Recycled Matter . | . . . . . . Retrieved Matter . | . . . . . . Retrieved Components . | . . . . . . Parts Scanalyzed . | . . . . . . Part Schematics Acquired . | . . . . . . Parts Damaged . | . . . . . . Bothacking | -11 -10 -9 -9 -8 -7 ------------ Run | Scr Mat Mat Min Mat Fac Used RIF Installer . | . . . . . . Robots Hacked . | . . . . . . Non-combat . | . . . . . . Combat . | . . . . . . Robot Hacks Applied . | . . . . . . Relay Couplers Released . | . . . . . . Fabnet Peak Effective % . | . . . . . . Robots Rewired . | . . . . . . Allies Hacked . | . . . . . . Hacks Repelled . | . . . . . . Allies | -11 -10 -9 -9 -8 -7 -------- Run | Scr Mat Mat Min Mat Fac Total Allies 1 | . . . 1 . . Largest Group 1 | . . . 1 . . Highest-Rated Group 31 | . . . 31 . . Highest-Rated Ally 31 | . . . 31 . . Total Orders . | . . . . . . Ally Attacks 12 | . . . 12 . . Total Damage 232 | . . . 232 . . Kills 3 | . . . 3 . . Allies Corrupted . | . . . . . . Allies Melted . | . . . . . . Intel | -11 -10 -9 -9 -8 -7 ------- Run | Scr Mat Mat Min Mat Fac Robot Analysis Total 2 | . 2 . . . . Derelict Logs Recovered . | . . . . . . Drone Launches . | . . . . . . Drone Recoveries . | . . . . . . Exploration | -11 -10 -9 -9 -8 -7 ------------- Run | Scr Mat Mat Min Mat Fac Turns Passed 2264 | 68 376 473 570 499 278 Spaces Moved 1180 | 40 193 214 302 232 199 Core 9 | 9 . . . . . Treads 896 | 31 193 214 302 156 . Legs . | . . . . . . Wheels 275 | . . . . 76 199 Hover . | . . . . . . Flight . | . . . . . . Fastest Speed 50 | 50 160 160 160 110 110 Average Speed 149 | 135 160 160 160 152 110 Slowest Speed 240 | 160 160 160 160 240 110 Overloaded Moves . | . . . . . . Propulsion Burnouts . | . . . . . . Robots Hopped . | . . . . . . Cave-ins Triggered . | . . . . . . Exploration Rate (%) 22 | 4 27 22 57 21 5 Regions Visited 5 Branch Regions 1 Pre-discovered Areas . | . . . . . . Known Exits Taken . | . . . . . . Unknown Exits Taken 5 | 1 1 1 1 1 . Scrap Searched 1 | . . . 1 . . Spaces Dug 22 | . . . 22 . . Terrain Destroyed 22 | . . . 22 . . Melee . | . . . . . . Projectile . | . . . . . . AOE 22 | . . . 22 . . Terrain Rammed . | . . . . . . Walls Destroyed . | . . . . . . Machines Disabled . | . . . . . . Actions | -11 -10 -9 -9 -8 -7 --------- Run | Scr Mat Mat Min Mat Fac Total 1459 | 52 235 281 339 302 250 Wait 45 | . 15 9 . 10 11 Move 1175 | 39 192 213 301 231 199 Hop . | . . . . . . Pick Up 28 | 7 6 7 1 5 2 Fast Attach 17 | 5 1 4 2 4 1 Attach 7 | 1 . 1 1 4 . Detach 6 | . . 2 1 1 2 Swap 11 | . 1 3 4 3 . Drop 30 | . 5 4 3 . 18 Fire 139 | . 15 37 26 44 17 Melee . | . . . . . . Ram . | . . . . . . Kick . | . . . . . . Crush 1 | . . 1 . . . Escape Stasis . | . . . . . . Rewire . | . . . . . . Trap . | . . . . . . Miscellaneous . | . . . . . . Route ------- -11/Scrapyard -10/Materials -9/Materials -9/Mines -8/Materials -7/Factory History --------- Turn | Location | Event 35 | -11/Scrapyard | Discovered new exit (range 16) 69 | -11/Scrapyard | Entered Materials 310 | -10/Materials | Build established: Mutant 314 | -10/Materials | Discovered new exit (range 4) 445 | -10/Materials | Entered another Materials area 445 | -9/Materials | Evolved 2 slots: Propulsion x1, Utility x1 891 | -9/Materials | Discovered new exit (range 15) 918 | -9/Materials | Entered Mines 961 | -9/Mines | Assembled infested the area 1131 | -9/Mines | Received a Mining Laser from a helpful Derelict 1132 | -9/Mines | Received a Rocket Launcher from a helpful Derelict 1240 | -9/Mines | Build established: Scavenger-Mutant 1458 | -9/Mines | Discovered new exit (range 10) 1488 | -9/Mines | Entered Materials 1488 | -8/Materials | Evolved 2 slots: Propulsion x1, Utility x1 1966 | -8/Materials | Discovered new exit (range 15) 1987 | -8/Materials | Entered Factory 1987 | -7/Factory | Evolved 2 slots: Utility x2 1987 | -7/Factory | Found Scrap Engine 2265 | -7/Factory | Self-destructed Last Messages --------------- 02143_ Dropped Sml. Laser. 02144_ Dropped Particle Gun. 02144_ Dropped Lgt. Assault Rifle. 02145_ Dropped Autogun. 02159_ Scrap Engine consumes Cesium-ion Thruster. 02191_ Scrap Engine modifies Ballistic Assault Construct/C: Max Damage -2, +Penetration Renamed Kinetic Construct/C. 02204_ ALERT: All DSF locations entering lockdown mode. 02208_ Slug penetrates G-47 Trooper. 02208_ G-47 Trooper knocked back. 02216_ Slug penetrates Wall. 02220_ Slug penetrates G-47 Trooper. 02220_ G-47 Trooper destroyed. 02224_ Acquired 42 matter. 02226_ Acquired 2 matter. 02227_ Acquired 43 matter. 02229_ Acquired 3 matter. 02230_ Acquired 4 matter. 02231_ Acquired 41 matter. Map ----- +----------------------------------------------------+ | ?????????????????????????????????????????????????? | | ?????????????????????????????????????????????????? | | ?????????????????????????????????????????????????? | | ?????????????????????????????????????????????????? | | ?????????????????????????????????????????????????? | | ?????????????????????????????????????????????????? | | ?????????????????????????????????????????????????? | | ????????????????????????????????????????????###### | | ????????????????????????????????????????????# | | ????????????????????????????????????????????# | | ???????????????????????????????????########## | | ???????????????????????????????????# # | | ???????????????????????????????????#/ """ [# | | ???????????????????????????????????# """ # """ | | ???????????????????????????????????#"" """ # """ | | ???????????????????????????????????#"" # """ | | ???????????????????????????????????#"T """ ]# "" | | ???????????????????????????????????#"" """ # "" | | ???????????????????????????????????#"" """ # | | ???????????? ?????????????####????# # | | ???????????? r############T ##########+######+## | | ??????????? t w! [ | | ??????????? [ [[[ | | ??????????# k =% [ | | ??????????# | | ??????????# @ | | ?????????????????##############################+## | | ????????????????????????????????????????????? | | ????????????????????????????????????????????# | | ????????????????????????????????????????????# | | ????????????????????????????????????????????# ! | | ????????????????????????????????????????????# | | ????????????????????????????????????????????# | | ????????????????????????????????????????????# | | ????????????????????????????????????????????# | | ????????????????????????????????????????????# | | ????????????????????????????????????????????# | | ????????????????????????????????????????????###### | | ????????????????????????????????????????????#### | | ????????????????????????????????????????????+ | | ????????????????????????????????????????????#### | | ???????????????????????????????????????????????# | | ?????????????????????????????????????????####??# | | ????????????????????????????????????????? | | ????????????????????????????????????????? | | ??????????????????????????????????????"" """ ? | | ??????????????????????????????????????"" """ ##?? | | ??????????????????????????????????????"" """ ???? | | ??????????????????????????????????????? #### | | ??????????????????????????????????????"" """ | +----------------------------------------------------+ Best States ------------- Heat Dissipation 55 Coolant Potential 50 Energy Generation 12 Energy Capacity 265 Matter Stores 300 Matter Capacity 300 Sight Range 16 Terrain Scan Density 10 Armor Coverage 150 Evasion (%) 40 Recoil Reduction 4 Item Schematics ----------------- None Robot Schematics ------------------ None Fabricated ------------ Nothing Alien Tech Used ----------------- None Achievements -------------- None Challenges ------------ None Game ------ Seed RestorationThiefSheargun Manual? 0 Play Time 00:14:16 Cumulative 482.6 hours Start 2022.09.05 @ 14:54:13 End 2022.09.06 @ 10:22:35 Sessions 1 Manual Loads 0 Difficulty Rogue Special Mode None Game No. 552 Rogue 551 Adventurer 0 Explorer 1 Win Type - Total 15 Types 10/0/2/3/0/0/0/0/0 Lore% 79 Gallery% 88 Achievement% 70 Wizard Run 0 Options --------- ASCII 0 Keyboard 1 Movement Vi Keybinds 0 Fullscreen 1 Font 18/SmallcapsGlow Map View 76x50 Tactical HUD 1 Map Filters NONE Filters NONE Steam 1 RUN: d6122657-b7c5-4db1-a4f1-39b08885f0af